[Event "Titled Tuesday Blitz April 26 Late 2022"]
[White "Kanyamarala, Tarun"]
[Black "Rosen, Eric"]
[WhiteFideId "45004714"]
[BlackFideId "2032562"]
[WhiteElo "2177"]
[BlackElo "2362"]
[Result "1-0"]
[Round "10"]
[TimeControl "180+1"]
[Date "2022.04.26"]
[WhiteClock "0:00:58"]
[BlackClock "0:00:02"]

1. d4 {[%clk 0:03:00]}  Nf6 {[%clk 0:02:58]} 2. c4 {[%clk 0:03:00]}  Nc6 {[%clk 0:02:59]} 3. Nf3 {[%clk 0:02:57]}  e6 {[%clk 0:02:57]} 4. g3 {[%clk 0:02:56]}  Bb4+ {[%clk 0:02:57]} 5. Nbd2 {[%clk 0:02:54]}  O-O {[%clk 0:02:56]} 6. Bg2 {[%clk 0:02:54]}  a5 {[%clk 0:02:56]} 7. O-O {[%clk 0:02:54]}  Re8 {[%clk 0:02:56]} 8. e4 {[%clk 0:02:35]}  Bxd2 {[%clk 0:02:52]} 9. Nxd2 {[%clk 0:02:35]}  Nxd4 {[%clk 0:02:52]} 10. e5 {[%clk 0:02:35]}  Nc6 {[%clk 0:01:40]} 11. exf6 {[%clk 0:02:35]}  Qxf6 {[%clk 0:01:41]} 12. Ne4 {[%clk 0:02:35]}  Qg6 {[%clk 0:01:37]} 13. h4 {[%clk 0:02:32]}  h6 {[%clk 0:01:35]} 14. Bf4 {[%clk 0:02:23]}  d6 {[%clk 0:01:33]} 15. Nc3 {[%clk 0:02:18]}  e5 {[%clk 0:01:26]} 16. Be3 {[%clk 0:02:15]}  Bg4 {[%clk 0:01:25]} 17. Bf3 {[%clk 0:02:13]}  Bh3 {[%clk 0:01:24]} 18. Re1 {[%clk 0:02:10]}  Rac8 {[%clk 0:01:00]} 19. Bh5 {[%clk 0:01:43]}  Qe6 {[%clk 0:00:58]} 20. Qd5 {[%clk 0:01:35]}  Qd7 {[%clk 0:00:54]} 21. Rad1 {[%clk 0:01:28]}  Be6 {[%clk 0:00:54]} 22. Qd3 {[%clk 0:01:24]}  Nb4 {[%clk 0:00:48]} 23. Qe2 {[%clk 0:01:18]}  Rf8 {[%clk 0:00:26]} 24. Nd5 {[%clk 0:01:10]}  c6 {[%clk 0:00:08]} 25. Nb6 {[%clk 0:01:05]}  Qc7 {[%clk 0:00:05]} 26. Nxc8 {[%clk 0:01:05]}  Bxc8 {[%clk 0:00:06]} 27. a3 {[%clk 0:01:02]}  Na6 {[%clk 0:00:06]} 28. Qd2 {[%clk 0:01:01]}  f5 {[%clk 0:00:04]} 29. Qxd6 {[%clk 0:01:00]}  Qxd6 {[%clk 0:00:03]} 30. Rxd6 {[%clk 0:01:00]}  f4 {[%clk 0:00:04]} 31. Bb6 {[%clk 0:00:59]}  fxg3 {[%clk 0:00:03]} 32. fxg3 {[%clk 0:00:59]}  Bh3 {[%clk 0:00:02]} 33. Rd8 {[%clk 0:00:58]} 1-0


[Site "https://www.chess.com"]

[Event "Titled Tuesday Blitz April 26 Late 2022"]
[White "Korchmar, Vasiliy"]
[Black "Martic, Ivan"]
[WhiteFideId "24131750"]
[BlackFideId "929301"]
[WhiteElo "2370"]
[BlackElo "2317"]
[Result "1-0"]
[Round "10"]
[TimeControl "180+1"]
[Date "2022.04.26"]
[WhiteClock "0:00:02"]
[BlackClock "0:00:01"]

1. e4 {[%clk 0:03:00]}  Nf6 {[%clk 0:02:59]} 2. e5 {[%clk 0:02:59]}  Nd5 {[%clk 0:02:59]} 3. d4 {[%clk 0:02:59]}  d6 {[%clk 0:02:59]} 4. Nf3 {[%clk 0:02:55]}  dxe5 {[%clk 0:02:58]} 5. Nxe5 {[%clk 0:02:53]}  c6 {[%clk 0:02:58]} 6. Bd3 {[%clk 0:02:48]}  Nd7 {[%clk 0:02:55]} 7. Nf3 {[%clk 0:02:47]}  N7f6 {[%clk 0:02:53]} 8. h3 {[%clk 0:02:46]}  g6 {[%clk 0:02:51]} 9. O-O {[%clk 0:02:46]}  Bg7 {[%clk 0:02:51]} 10. c4 {[%clk 0:02:44]}  Nb4 {[%clk 0:02:47]} 11. Be2 {[%clk 0:02:44]}  Bf5 {[%clk 0:02:46]} 12. Na3 {[%clk 0:02:44]}  O-O {[%clk 0:02:46]} 13. Bf4 {[%clk 0:02:36]}  a5 {[%clk 0:02:40]} 14. Be5 {[%clk 0:02:24]}  Ne4 {[%clk 0:02:38]} 15. Bxg7 {[%clk 0:02:23]}  Kxg7 {[%clk 0:02:39]} 16. Re1 {[%clk 0:02:19]}  Qc7 {[%clk 0:02:33]} 17. Bf1 {[%clk 0:02:15]}  Nf6 {[%clk 0:02:28]} 18. c5 {[%clk 0:02:02]}  Rfd8 {[%clk 0:02:18]} 19. Qb3 {[%clk 0:01:57]}  Be4 {[%clk 0:02:06]} 20. Ng5 {[%clk 0:01:53]}  Bd5 {[%clk 0:02:06]} 21. Nc4 {[%clk 0:01:51]}  Qf4 {[%clk 0:01:58]} 22. a3 {[%clk 0:01:22]}  Qxg5 {[%clk 0:01:54]} 23. axb4 {[%clk 0:01:21]}  axb4 {[%clk 0:01:39]} 24. Rxa8 {[%clk 0:01:22]}  Rxa8 {[%clk 0:01:37]} 25. Qxb4 {[%clk 0:01:22]}  Nh5 {[%clk 0:01:30]} 26. Re5 {[%clk 0:01:09]}  Qc1 {[%clk 0:01:22]} 27. Re1 {[%clk 0:01:02]}  Qg5 {[%clk 0:01:21]} 28. Qxb7 {[%clk 0:00:57]}  Ra4 {[%clk 0:00:34]} 29. b3 {[%clk 0:00:49]}  Ra2 {[%clk 0:00:31]} 30. Qxe7 {[%clk 0:00:48]}  Qxe7 {[%clk 0:00:13]} 31. Rxe7 {[%clk 0:00:49]}  Ra1 {[%clk 0:00:14]} 32. g3 {[%clk 0:00:42]}  Rb1 {[%clk 0:00:12]} 33. Ne3 {[%clk 0:00:37]}  Bf3 {[%clk 0:00:11]} 34. Kh2 {[%clk 0:00:30]}  Rb2 {[%clk 0:00:11]} 35. Kg1 {[%clk 0:00:26]}  Rb1 {[%clk 0:00:10]} 36. Rb7 {[%clk 0:00:19]}  Nf6 {[%clk 0:00:10]} 37. b4 {[%clk 0:00:12]}  Ne4 {[%clk 0:00:09]} 38. b5 {[%clk 0:00:10]}  Nd2 {[%clk 0:00:09]} 39. bxc6 {[%clk 0:00:10]}  Rc1 {[%clk 0:00:07]} 40. Rb2 {[%clk 0:00:08]}  Nxf1 {[%clk 0:00:06]} 41. Nxf1 {[%clk 0:00:09]}  Bxc6 {[%clk 0:00:06]} 42. g4 {[%clk 0:00:04]}  Bd5 {[%clk 0:00:06]} 43. Rd2 {[%clk 0:00:01]}  Bc4 {[%clk 0:00:06]} 44. Kh2 {[%clk 0:00:02]}  Rxf1 {[%clk 0:00:05]} 45. d5 {[%clk 0:00:03]}  Rc1 {[%clk 0:00:04]} 46. c6 {[%clk 0:00:03]}  Ba6 {[%clk 0:00:02]} 47. Ra2 {[%clk 0:00:02]}  Bc4 {[%clk 0:00:01]} 48. Rd2 {[%clk 0:00:02]}  Rc3 {[%clk 0:00:01]} 49. d6 {[%clk 0:00:02]} 1-0


[Site "https://www.chess.com"]

[Event "Titled Tuesday Blitz April 26 Late 2022"]
[White "Kosteniuk, Alexandra"]
[Black "Bryakin, Mikhail"]
[WhiteFideId "4128125"]
[BlackFideId "4165314"]
[WhiteElo "2469"]
[BlackElo "2417"]
[Result "0-1"]
[Round "10"]
[TimeControl "180+1"]
[Date "2022.04.26"]
[WhiteClock "0:00:03"]
[BlackClock "0:00:10"]

1. e4 {[%clk 0:03:00]}  e5 {[%clk 0:03:00]} 2. Nf3 {[%clk 0:03:00]}  d5 {[%clk 0:03:00]} 3. exd5 {[%clk 0:02:57]}  Qxd5 {[%clk 0:02:42]} 4. Nc3 {[%clk 0:02:56]}  Qe6 {[%clk 0:02:41]} 5. b3 {[%clk 0:02:49]}  Nc6 {[%clk 0:02:39]} 6. Bc4 {[%clk 0:02:49]}  Qg6 {[%clk 0:02:33]} 7. Nb5 {[%clk 0:02:20]}  Bd6 {[%clk 0:02:32]} 8. Nxd6+ {[%clk 0:02:13]}  cxd6 {[%clk 0:02:32]} 9. d4 {[%clk 0:02:04]}  e4 {[%clk 0:02:25]} 10. Ng5 {[%clk 0:02:01]}  Nd8 {[%clk 0:02:10]} 11. Qe2 {[%clk 0:01:52]}  Nf6 {[%clk 0:02:10]} 12. f3 {[%clk 0:01:33]}  d5 {[%clk 0:02:00]} 13. Bb5+ {[%clk 0:01:33]}  Kf8 {[%clk 0:01:53]} 14. fxe4 {[%clk 0:01:27]}  dxe4 {[%clk 0:01:51]} 15. h4 {[%clk 0:01:13]}  h6 {[%clk 0:01:49]} 16. Nh3 {[%clk 0:01:13]}  Qg3+ {[%clk 0:01:47]} 17. Kf1 {[%clk 0:00:52]}  Bg4 {[%clk 0:01:31]} 18. Qe3 {[%clk 0:00:48]}  Qc7 {[%clk 0:01:17]} 19. Bc4 {[%clk 0:00:29]}  b5 {[%clk 0:01:11]} 20. Bxb5 {[%clk 0:00:28]}  Qxc2 {[%clk 0:01:11]} 21. Ba3+ {[%clk 0:00:28]}  Kg8 {[%clk 0:01:11]} 22. Nf2 {[%clk 0:00:27]}  Bf5 {[%clk 0:01:07]} 23. Bc4 {[%clk 0:00:27]}  Ne6 {[%clk 0:01:04]} 24. d5 {[%clk 0:00:25]}  Nc7 {[%clk 0:00:59]} 25. Qd4 {[%clk 0:00:21]}  e3 {[%clk 0:00:54]} 26. Qxe3 {[%clk 0:00:21]}  Ncxd5 {[%clk 0:00:54]} 27. Qd4 {[%clk 0:00:20]}  Nb6 {[%clk 0:00:45]} 28. Bd3 {[%clk 0:00:19]}  Qc8 {[%clk 0:00:45]} 29. Bxf5 {[%clk 0:00:18]}  Qxf5 {[%clk 0:00:46]} 30. Kg1 {[%clk 0:00:19]}  h5 {[%clk 0:00:44]} 31. Qd3 {[%clk 0:00:18]}  Qa5 {[%clk 0:00:42]} 32. Bb2 {[%clk 0:00:18]}  Rh6 {[%clk 0:00:43]} 33. Bc1 {[%clk 0:00:17]}  Rg6 {[%clk 0:00:43]} 34. Bg5 {[%clk 0:00:18]}  Re8 {[%clk 0:00:37]} 35. Rf1 {[%clk 0:00:17]}  Qxa2 {[%clk 0:00:35]} 36. Nh3 {[%clk 0:00:16]}  Nfd5 {[%clk 0:00:32]} 37. Nf2 {[%clk 0:00:13]}  Rge6 {[%clk 0:00:32]} 38. Rh3 {[%clk 0:00:12]}  f6 {[%clk 0:00:32]} 39. Bd2 {[%clk 0:00:11]}  Re2 {[%clk 0:00:31]} 40. Bc1 {[%clk 0:00:09]}  Nb4 {[%clk 0:00:19]} 41. Qg6 {[%clk 0:00:08]}  Qc2 {[%clk 0:00:16]} 42. Qxh5 {[%clk 0:00:07]}  Nd3 {[%clk 0:00:16]} 43. Rxd3 {[%clk 0:00:05]}  Rxf2 {[%clk 0:00:17]} 44. Rxf2 {[%clk 0:00:05]}  Re1+ {[%clk 0:00:16]} 45. Kh2 {[%clk 0:00:04]}  Qxd3 {[%clk 0:00:16]} 46. Rf3 {[%clk 0:00:03]}  Qd6+ {[%clk 0:00:16]} 47. Rg3 {[%clk 0:00:04]}  Re7 {[%clk 0:00:15]} 48. Qg6 {[%clk 0:00:03]}  Qe6 {[%clk 0:00:14]} 49. Bh6 {[%clk 0:00:03]}  Qf7 {[%clk 0:00:15]} 50. Qg4 {[%clk 0:00:03]}  Kh7 {[%clk 0:00:15]} 51. Bf4 {[%clk 0:00:03]}  g6 {[%clk 0:00:10]} 52. h5 {[%clk 0:00:03]}  g5 {[%clk 0:00:10]} 53. Qf5+ {[%clk 0:00:04]}  Kh8 {[%clk 0:00:09]} 54. Bd6 {[%clk 0:00:04]}  Rd7 {[%clk 0:00:09]} 55. Bc5 {[%clk 0:00:04]}  Nd5 {[%clk 0:00:09]} 56. b4 {[%clk 0:00:04]}  Nf4 {[%clk 0:00:09]} 57. h6 {[%clk 0:00:04]}  Qh5+ {[%clk 0:00:09]} 58. Kg1 {[%clk 0:00:03]}  Rd1+ {[%clk 0:00:10]} 59. Kf2 {[%clk 0:00:03]}  Qe2# {[%clk 0:00:10]} 0-1


[Site "https://www.chess.com"]

[Event "Titled Tuesday Blitz April 26 Late 2022"]
[White "Kozin, Yuri"]
[Black "Sanchez Alvares, Kelvin Antonio"]
[WhiteFideId "4129920"]
[BlackFideId "3906680"]
[WhiteElo "2562"]
[BlackElo "2193"]
[Result "0-1"]
[Round "10"]
[TimeControl "180+1"]
[Date "2022.04.26"]
[WhiteClock "0:00:15"]
[BlackClock "0:01:07"]

1. e4 {[%clk 0:03:00]}  c5 {[%clk 0:02:58]} 2. Nf3 {[%clk 0:03:00]}  e6 {[%clk 0:02:58]} 3. d4 {[%clk 0:03:01]}  cxd4 {[%clk 0:02:59]} 4. Nxd4 {[%clk 0:03:02]}  a6 {[%clk 0:02:59]} 5. Bd3 {[%clk 0:02:59]}  Qc7 {[%clk 0:02:58]} 6. Nc3 {[%clk 0:03:00]}  Nf6 {[%clk 0:02:57]} 7. f4 {[%clk 0:03:00]}  Nc6 {[%clk 0:02:54]} 8. Nb3 {[%clk 0:02:59]}  Bb4 {[%clk 0:02:52]} 9. Bd2 {[%clk 0:02:53]}  Bxc3 {[%clk 0:02:51]} 10. bxc3 {[%clk 0:02:53]}  d5 {[%clk 0:02:49]} 11. e5 {[%clk 0:02:53]}  Nd7 {[%clk 0:02:44]} 12. O-O {[%clk 0:02:49]}  Ne7 {[%clk 0:02:42]} 13. Nd4 {[%clk 0:02:40]}  g6 {[%clk 0:02:40]} 14. Qg4 {[%clk 0:02:35]}  Nc5 {[%clk 0:02:38]} 15. Qh4 {[%clk 0:02:28]}  Na4 {[%clk 0:02:25]} 16. Qf6 {[%clk 0:02:21]}  Rf8 {[%clk 0:02:24]} 17. f5 {[%clk 0:02:17]}  gxf5 {[%clk 0:02:06]} 18. Bh6 {[%clk 0:01:49]}  Qxc3 {[%clk 0:01:57]} 19. Nf3 {[%clk 0:01:36]}  Ng8 {[%clk 0:01:52]} 20. Qh4 {[%clk 0:01:18]}  Nxh6 {[%clk 0:01:51]} 21. Qxa4+ {[%clk 0:01:13]}  Bd7 {[%clk 0:01:50]} 22. Qh4 {[%clk 0:01:11]}  Ng4 {[%clk 0:01:50]} 23. Rfe1 {[%clk 0:01:03]}  Qc5+ {[%clk 0:01:45]} 24. Kh1 {[%clk 0:00:46]}  Nf2+ {[%clk 0:01:42]} 25. Kg1 {[%clk 0:00:46]}  Nxd3+ {[%clk 0:01:42]} 26. Nd4 {[%clk 0:00:42]}  Nxe1 {[%clk 0:01:33]} 27. Rxe1 {[%clk 0:00:42]}  Qe7 {[%clk 0:01:32]} 28. Qf2 {[%clk 0:00:41]}  Rg8 {[%clk 0:01:25]} 29. Kh1 {[%clk 0:00:31]}  Rg6 {[%clk 0:01:25]} 30. Rb1 {[%clk 0:00:28]}  b5 {[%clk 0:01:24]} 31. a4 {[%clk 0:00:25]}  b4 {[%clk 0:01:19]} 32. a5 {[%clk 0:00:24]}  Kf8 {[%clk 0:01:18]} 33. h3 {[%clk 0:00:24]}  Kg8 {[%clk 0:01:18]} 34. Nf3 {[%clk 0:00:23]}  Kh8 {[%clk 0:01:16]} 35. Qd4 {[%clk 0:00:24]}  Rag8 {[%clk 0:01:14]} 36. Rg1 {[%clk 0:00:20]}  Bb5 {[%clk 0:01:11]} 37. Nh4 {[%clk 0:00:15]}  Rg4 {[%clk 0:01:07]} 0-1


[Site "https://www.chess.com"]

[Event "Titled Tuesday Blitz April 26 Late 2022"]
[White "Krstulovic, Alex"]
[Black "Torres Cueto, Jesus Marcial"]
[WhiteFideId "760056"]
[BlackFideId "4415280"]
[WhiteElo "2573"]
[BlackElo "2370"]
[Result "1-0"]
[Round "10"]
[TimeControl "180+1"]
[Date "2022.04.26"]
[WhiteClock "0:00:06"]
[BlackClock "0:00:04"]

1. e4 {[%clk 0:03:00]}  e6 {[%clk 0:03:00]} 2. d4 {[%clk 0:03:00]}  d5 {[%clk 0:03:00]} 3. e5 {[%clk 0:03:01]}  c5 {[%clk 0:03:00]} 4. c3 {[%clk 0:03:01]}  Nc6 {[%clk 0:02:53]} 5. Nf3 {[%clk 0:03:01]}  Nge7 {[%clk 0:02:51]} 6. Na3 {[%clk 0:02:59]}  cxd4 {[%clk 0:02:46]} 7. cxd4 {[%clk 0:02:59]}  Nf5 {[%clk 0:02:46]} 8. Nc2 {[%clk 0:02:41]}  Bd7 {[%clk 0:02:39]} 9. Be2 {[%clk 0:02:34]}  Be7 {[%clk 0:02:30]} 10. g4 {[%clk 0:02:34]}  Nh4 {[%clk 0:02:27]} 11. Nxh4 {[%clk 0:02:34]}  Bxh4 {[%clk 0:02:28]} 12. O-O {[%clk 0:02:35]}  Be7 {[%clk 0:02:23]} 13. f4 {[%clk 0:02:34]}  f6 {[%clk 0:02:12]} 14. Bd3 {[%clk 0:02:27]}  f5 {[%clk 0:02:10]} 15. gxf5 {[%clk 0:02:17]}  exf5 {[%clk 0:02:11]} 16. Qh5+ {[%clk 0:02:07]}  g6 {[%clk 0:02:11]} 17. Qh6 {[%clk 0:02:07]}  Bf8 {[%clk 0:02:06]} 18. Qh3 {[%clk 0:02:06]}  Be6 {[%clk 0:02:05]} 19. Rb1 {[%clk 0:01:56]}  Qb6 {[%clk 0:02:04]} 20. b4 {[%clk 0:01:49]}  a6 {[%clk 0:01:57]} 21. Be3 {[%clk 0:01:42]}  Bg7 {[%clk 0:01:54]} 22. b5 {[%clk 0:01:34]}  axb5 {[%clk 0:01:52]} 23. Rxb5 {[%clk 0:01:34]}  Qc7 {[%clk 0:01:44]} 24. Rfb1 {[%clk 0:01:34]}  Nd8 {[%clk 0:01:42]} 25. Rc5 {[%clk 0:01:32]}  Qe7 {[%clk 0:01:39]} 26. Bb5+ {[%clk 0:01:31]}  Kf7 {[%clk 0:01:40]} 27. Rc1 {[%clk 0:01:27]}  Nc6 {[%clk 0:01:31]} 28. Bxc6 {[%clk 0:01:25]}  bxc6 {[%clk 0:01:31]} 29. Nb4 {[%clk 0:01:25]}  Qb7 {[%clk 0:01:23]} 30. Nxc6 {[%clk 0:01:19]}  Rxa2 {[%clk 0:01:16]} 31. Nd8+ {[%clk 0:01:16]}  Rxd8 {[%clk 0:01:16]} 32. Rc7+ {[%clk 0:01:15]}  Rd7 {[%clk 0:01:16]} 33. Rxb7 {[%clk 0:01:15]}  Rxb7 {[%clk 0:01:17]} 34. Qxh7 {[%clk 0:01:05]}  Ra8 {[%clk 0:01:12]} 35. Qh4 {[%clk 0:00:57]}  Rh8 {[%clk 0:01:04]} 36. Qf2 {[%clk 0:00:56]}  Rc8 {[%clk 0:01:04]} 37. Rxc8 {[%clk 0:00:50]}  Bxc8 {[%clk 0:01:05]} 38. Qc2 {[%clk 0:00:50]}  Be6 {[%clk 0:00:48]} 39. Qc6 {[%clk 0:00:48]}  Rd7 {[%clk 0:00:48]} 40. Bd2 {[%clk 0:00:46]}  Bf8 {[%clk 0:00:41]} 41. Ba5 {[%clk 0:00:41]}  Be7 {[%clk 0:00:40]} 42. Bc7 {[%clk 0:00:41]}  Bh4 {[%clk 0:00:39]} 43. Bd6 {[%clk 0:00:39]}  Bd8 {[%clk 0:00:37]} 44. Qc3 {[%clk 0:00:32]}  Kg7 {[%clk 0:00:37]} 45. Qg3 {[%clk 0:00:22]}  Kh6 {[%clk 0:00:34]} 46. h4 {[%clk 0:00:21]}  Rb7 {[%clk 0:00:29]} 47. Bf8+ {[%clk 0:00:14]}  Kh7 {[%clk 0:00:25]} 48. h5 {[%clk 0:00:14]}  gxh5 {[%clk 0:00:15]} 49. Kf1 {[%clk 0:00:13]}  Rf7 {[%clk 0:00:14]} 50. Bd6 {[%clk 0:00:12]}  Rg7 {[%clk 0:00:15]} 51. Qh3 {[%clk 0:00:13]}  h4 {[%clk 0:00:15]} 52. Bb4 {[%clk 0:00:11]}  Rg4 {[%clk 0:00:15]} 53. Bd2 {[%clk 0:00:11]}  Rg3 {[%clk 0:00:15]} 54. Qh2 {[%clk 0:00:11]}  Kg6 {[%clk 0:00:14]} 55. Be1 {[%clk 0:00:10]}  Rg4 {[%clk 0:00:13]} 56. Ke2 {[%clk 0:00:10]}  Be7 {[%clk 0:00:14]} 57. Kf3 {[%clk 0:00:09]}  Bd7 {[%clk 0:00:13]} 58. Qc2 {[%clk 0:00:08]}  Be6 {[%clk 0:00:13]} 59. Qc6 {[%clk 0:00:08]}  Kf7 {[%clk 0:00:13]} 60. Qa8 {[%clk 0:00:08]}  Rg8 {[%clk 0:00:12]} 61. Qb7 {[%clk 0:00:07]}  Rg4 {[%clk 0:00:11]} 62. Bb4 {[%clk 0:00:07]}  Rg3+ {[%clk 0:00:10]} 63. Kf2 {[%clk 0:00:07]}  Kg6 {[%clk 0:00:07]} 64. Qxe7 {[%clk 0:00:07]}  Bg8 {[%clk 0:00:05]} 65. Qxh4 {[%clk 0:00:06]}  Rg4 {[%clk 0:00:05]} 66. Qf6+ {[%clk 0:00:06]}  Kh5 {[%clk 0:00:03]} 67. Qxf5+ {[%clk 0:00:06]}  Kh4 {[%clk 0:00:04]} 68. Be7+ {[%clk 0:00:06]}  Kh3 {[%clk 0:00:04]} 69. Qh5+ {[%clk 0:00:06]} 1-0


[Site "https://www.chess.com"]

[Event "Titled Tuesday Blitz April 26 Late 2022"]
[White "Kukula, Pawel"]
[Black "Lopez Del Alamo, Antonio"]
[WhiteFideId "1115081"]
[BlackFideId "2227339"]
[WhiteElo "2152"]
[BlackElo "2082"]
[Result "1-0"]
[Round "10"]
[TimeControl "180+1"]
[Date "2022.04.26"]
[WhiteClock "0:00:39"]
[BlackClock "0:00:03"]

1. b4 {[%clk 0:02:56]}  e5 {[%clk 0:02:58]} 2. Bb2 {[%clk 0:02:56]}  d6 {[%clk 0:02:57]} 3. Nf3 {[%clk 0:02:52]}  f5 {[%clk 0:02:49]} 4. d4 {[%clk 0:02:41]}  e4 {[%clk 0:02:46]} 5. Nfd2 {[%clk 0:02:41]}  Nf6 {[%clk 0:02:45]} 6. e3 {[%clk 0:02:42]}  g6 {[%clk 0:02:44]} 7. c4 {[%clk 0:02:42]}  Bg7 {[%clk 0:02:45]} 8. Qb3 {[%clk 0:02:41]}  O-O {[%clk 0:02:45]} 9. Nc3 {[%clk 0:02:39]}  Kh8 {[%clk 0:02:45]} 10. h3 {[%clk 0:02:39]}  Be6 {[%clk 0:02:40]} 11. O-O-O {[%clk 0:02:26]}  Bf7 {[%clk 0:02:34]} 12. g4 {[%clk 0:02:21]}  c6 {[%clk 0:02:30]} 13. g5 {[%clk 0:02:18]}  Nh5 {[%clk 0:02:23]} 14. h4 {[%clk 0:02:18]}  Nd7 {[%clk 0:02:20]} 15. Ne2 {[%clk 0:02:16]}  b5 {[%clk 0:02:17]} 16. Qc2 {[%clk 0:02:15]}  bxc4 {[%clk 0:02:14]} 17. Nxc4 {[%clk 0:02:15]}  Nb6 {[%clk 0:02:11]} 18. Ng3 {[%clk 0:02:02]}  Nxc4 {[%clk 0:01:27]} 19. Bxc4 {[%clk 0:02:00]}  d5 {[%clk 0:01:27]} 20. Be2 {[%clk 0:01:57]}  a5 {[%clk 0:01:26]} 21. Bxh5 {[%clk 0:01:50]}  gxh5 {[%clk 0:01:25]} 22. Nxf5 {[%clk 0:01:50]}  axb4 {[%clk 0:01:19]} 23. Nxg7 {[%clk 0:01:49]}  Kxg7 {[%clk 0:01:19]} 24. Kb1 {[%clk 0:01:41]}  Qa5 {[%clk 0:01:17]} 25. Qb3 {[%clk 0:01:35]}  Kg8 {[%clk 0:01:08]} 26. Rc1 {[%clk 0:01:34]}  Be8 {[%clk 0:00:44]} 27. Rc5 {[%clk 0:01:30]}  Qa6 {[%clk 0:00:43]} 28. Rc2 {[%clk 0:01:19]}  Ra7 {[%clk 0:00:42]} 29. Rg1 {[%clk 0:01:09]}  Qd3 {[%clk 0:00:34]} 30. Qxd3 {[%clk 0:01:05]}  exd3 {[%clk 0:00:33]} 31. Rd2 {[%clk 0:01:02]}  Bg6 {[%clk 0:00:32]} 32. f4 {[%clk 0:00:55]}  Rfa8 {[%clk 0:00:27]} 33. Bc1 {[%clk 0:00:54]}  Be4 {[%clk 0:00:08]} 34. Rf1 {[%clk 0:00:51]}  Rf8 {[%clk 0:00:07]} 35. Kb2 {[%clk 0:00:49]}  Rf5 {[%clk 0:00:06]} 36. Kb3 {[%clk 0:00:49]}  Kf7 {[%clk 0:00:07]} 37. Kxb4 {[%clk 0:00:49]}  Ke6 {[%clk 0:00:07]} 38. a4 {[%clk 0:00:48]}  Rff7 {[%clk 0:00:07]} 39. Ra2 {[%clk 0:00:43]}  Kf5 {[%clk 0:00:06]} 40. Bd2 {[%clk 0:00:43]}  Rfb7+ {[%clk 0:00:06]} 41. Kc3 {[%clk 0:00:42]}  Rb6 {[%clk 0:00:04]} 42. a5 {[%clk 0:00:42]}  Rb5 {[%clk 0:00:04]} 43. Rb2 {[%clk 0:00:40]}  Rbxa5 {[%clk 0:00:04]} 44. g6 {[%clk 0:00:39]}  hxg6 {[%clk 0:00:04]} 45. Rg1 {[%clk 0:00:39]}  Ra3+ {[%clk 0:00:03]} 46. Kb4 {[%clk 0:00:39]} 1-0


[Site "https://www.chess.com"]

[Event "Titled Tuesday Blitz April 26 Late 2022"]
[White "Licznerski, Lukasz"]
[Black "Pesotskiy, Mikhail"]
[WhiteFideId "1179250"]
[BlackFideId "34164453"]
[WhiteElo "2422"]
[BlackElo "2010"]
[Result "1-0"]
[Round "10"]
[TimeControl "180+1"]
[Date "2022.04.26"]
[WhiteClock "0:00:03"]
[BlackClock "0:00:02"]

1. e4 {[%clk 0:03:00]}  e6 {[%clk 0:02:59]} 2. d4 {[%clk 0:03:01]}  d5 {[%clk 0:02:59]} 3. Nd2 {[%clk 0:03:01]}  Nf6 {[%clk 0:02:58]} 4. e5 {[%clk 0:03:01]}  Nfd7 {[%clk 0:02:59]} 5. Bd3 {[%clk 0:03:01]}  c5 {[%clk 0:02:59]} 6. c3 {[%clk 0:03:02]}  Nc6 {[%clk 0:03:00]} 7. Ne2 {[%clk 0:03:02]}  cxd4 {[%clk 0:03:00]} 8. cxd4 {[%clk 0:03:03]}  f6 {[%clk 0:03:01]} 9. Nf4 {[%clk 0:03:03]}  Qe7 {[%clk 0:03:01]} 10. O-O {[%clk 0:02:29]}  Nxd4 {[%clk 0:02:43]} 11. exf6 {[%clk 0:02:06]}  Nxf6 {[%clk 0:02:44]} 12. Re1 {[%clk 0:01:58]}  Bd7 {[%clk 0:02:32]} 13. Nf3 {[%clk 0:01:38]}  Nxf3+ {[%clk 0:02:20]} 14. Qxf3 {[%clk 0:01:39]}  Qb4 {[%clk 0:01:47]} 15. Be3 {[%clk 0:01:15]}  Bd6 {[%clk 0:01:44]} 16. a3 {[%clk 0:01:03]}  Qa4 {[%clk 0:01:44]} 17. b3 {[%clk 0:00:41]}  Qa5 {[%clk 0:01:24]} 18. Bd4 {[%clk 0:00:31]}  O-O {[%clk 0:01:24]} 19. Nxe6 {[%clk 0:00:30]}  Bxe6 {[%clk 0:00:19]} 20. Rxe6 {[%clk 0:00:31]}  Qc7 {[%clk 0:00:15]} 21. Bxf6 {[%clk 0:00:27]}  Rxf6 {[%clk 0:00:11]} 22. Rxf6 {[%clk 0:00:26]}  gxf6 {[%clk 0:00:12]} 23. Qxd5+ {[%clk 0:00:23]}  Kh8 {[%clk 0:00:11]} 24. g3 {[%clk 0:00:21]}  Be5 {[%clk 0:00:10]} 25. Rd1 {[%clk 0:00:17]}  Rd8 {[%clk 0:00:11]} 26. Qf3 {[%clk 0:00:16]}  b6 {[%clk 0:00:12]} 27. h4 {[%clk 0:00:13]}  Qc3 {[%clk 0:00:11]} 28. Qf5 {[%clk 0:00:12]}  Qc7 {[%clk 0:00:12]} 29. Re1 {[%clk 0:00:10]}  Qd7 {[%clk 0:00:11]} 30. Qxd7 {[%clk 0:00:08]}  Rxd7 {[%clk 0:00:12]} 31. Bc4 {[%clk 0:00:07]}  Kg7 {[%clk 0:00:12]} 32. f4 {[%clk 0:00:06]}  Bd4+ {[%clk 0:00:12]} 33. Kg2 {[%clk 0:00:06]}  a5 {[%clk 0:00:11]} 34. Re8 {[%clk 0:00:04]}  Bc5 {[%clk 0:00:10]} 35. Rg8+ {[%clk 0:00:04]}  Kh6 {[%clk 0:00:10]} 36. g4 {[%clk 0:00:04]}  Rd1 {[%clk 0:00:01]} 37. Kf3 {[%clk 0:00:03]}  Rf1+ {[%clk 0:00:01]} 38. Bxf1 {[%clk 0:00:03]}  Be7 {[%clk 0:00:01]} 39. Bc4 {[%clk 0:00:03]}  Bd6 {[%clk 0:00:01]} 40. Bf7 {[%clk 0:00:03]}  f5 {[%clk 0:00:02]} 41. g5# {[%clk 0:00:03]} 1-0


[Site "https://www.chess.com"]